bitfinex/quotes_SOLUSD_20260213
["timestamp","ask_amount","ask_price","bid_price","bid_amount"]
[1771004908576,10.44705099,84.32,84.29,10.44705099]
[1771004908891,10.44705099,84.32,84.291,0.88329354]
[1771004909090,10.44705099,84.31,84.282,0.88329354]
[1771004909294,11.85972319,84.319,84.271,12.74966709]
[1771004909295,11.31458038,84.3,84.271,12.74966709]
[1771004909685,0.86752939,84.309,84.272,0.88329354]
[1771004910192,4.61729252,84.335,84.271,11.86637355]
[1771004910193,11.85885008,84.326,84.291,0.88329354]
[1771004910393,11.85747839,84.335,84.302,0.88329354]
[1771004910694,10.44705099,84.33,84.302,0.88329354]
[1771004910874,11.85747839,84.335,84.302,0.88329354]
[1771004911071,10.44705099,84.33,84.302,0.88329354]
[1771004911697,11.85747839,84.335,84.302,0.88329354]
[1771004912194,22.30241554,84.35,84.311,0.90108885]
[1771004912379,0.90800014,84.349,84.311,0.90108885]
[1771004912574,0.90800014,84.347,84.311,0.90108885]
[1771004912991,0.90800014,84.347,84.312,0.90108885]
[1771004913188,0.90800014,84.347,84.32,10.44705099]
[1771004913393,0.90800014,84.347,84.312,0.90108885]
[1771004913694,10.44705099,84.34,84.312,0.90108885]
[1771004914271,10.44705099,84.33,84.301,0.90108885]
[1771004914493,0.90800014,84.329,84.292,12.7644875]
[1771004914696,11.85705138,84.338,84.301,0.90108885]
[1771004915071,10.44705099,84.33,84.301,0.90108885]
[1771004915474,11.85595404,84.346,84.311,0.90108885]
[1771004916077,11.85595404,84.346,84.32,10.44705099]
[1771004916278,11.35505113,84.36,84.321,0.90108885]
[1771004916483,71.00597702,84.5,84.35,10.44705099]
[1771004916484,0.90800014,84.386,84.35,10.44705099]
[1771004916783,0.90800014,84.384,84.35,10.44705099]
[1771004917098,0.85143556,84.379,84.34,11.37739575]
[1771004917308,11.85044735,84.385,84.334,11.85755254]
[1771004917309,0.85143556,84.369,84.334,11.85755254]
[1771004918000,0.85143556,84.369,84.331,12.7882984]
[1771004918202,0.85143556,84.369,84.332,0.93034476]
[1771004918603,11.85283519,84.368,84.332,0.93034476]
[1771004918782,11.85283519,84.368,84.34,10.44705099]
[1771004918982,0.85143556,84.378,84.341,0.93034476]
[1771004922209,0.85143556,84.378,84.343,0.93034476]
[1771004922210,11.85157092,84.377,84.343,0.93034476]
[1771004922406,11.85157092,84.377,84.351,0.93034476]
[1771004922586,0.85143556,84.369,84.342,0.93034476]
[1771004922790,11.85157092,84.377,84.343,0.93034476]
[1771004923106,47.37457565,84.434,84.342,11.85648905]
[1771004923107,0.85143556,84.389,84.352,0.93034476]
[1771004923316,0.85143556,84.389,84.36,10.44705099]
[1771004923504,0.85143556,84.389,84.352,0.93034476]
[1771004923913,0.2,84.39,84.361,0.93034476]
[1771004924113,11.84567455,84.419,84.381,0.93034476]
[1771004924406,0.85143556,84.399,84.367,11.85292043]
[1771004924611,46.74,84.406,84.371,0.93034476]
[1771004924816,11.84707791,84.409,84.367,11.85292043]
[1771004924817,0.85143556,84.419,84.381,0.93034476]
[1771004924989,10.64705099,84.42,84.391,0.93034476]
[1771004924990,0.2,84.42,84.391,0.93034476]
[1771004925301,0.2,84.42,84.372,0.93034476]
[1771004925302,0.85143556,84.409,84.372,0.93034476]
[1771004925504,0.85143556,84.409,84.33,47.43240642]
[1771004925505,0.85143556,84.389,84.351,0.93034476]
[1771004925695,10.44705099,84.38,84.351,0.93034476]
[1771004926096,10.44705099,84.38,84.34,10.44705099]
[1771004926097,10.44705099,84.37,84.341,0.93034476]
[1771004926409,22.29973088,84.37,84.341,0.93034476]
[1771004926585,22.29973088,84.37,84.342,11.85648905]
[1771004926586,10.44705099,84.37,84.342,11.85648905]
[1771004926786,10.44705099,84.38,84.343,0.93034476]
[1771004926984,11.85131067,84.379,84.343,0.93034476]
[1771004927713,10.44705099,84.37,84.343,0.93034476]
[1771004927909,22.29820055,84.38,84.351,0.93034476]
[1771004928106,11.29848655,84.39,84.351,0.93034476]
[1771004928312,10.44705099,84.38,84.351,0.93034476]
[1771004928512,10.44705099,84.37,84.34,11.37739575]
[1771004928807,10.44705099,84.37,84.341,11.85662963]
[1771004928993,0.85143556,84.379,84.342,0.93034476]
[1771004930309,11.85143046,84.378,84.343,11.85634848]
[1771004930616,11.85143046,84.378,84.344,0.93034476]
[1771004931198,46.68,84.393,84.343,11.85634848]
[1771004931199,0.2,84.42,84.371,0.93034476]
[1771004931396,0.2,84.42,84.401,0.93034476]
[1771004931697,0.85143556,84.429,84.397,0.93034476]
[1771004931892,0.85143556,84.419,84.39,10.44705099]
[1771004932315,11.84581487,84.418,84.39,10.44705099]
[1771004932700,0.85143556,84.419,84.39,10.44705099]
[1771004933112,46.68,84.434,84.38,22.2981634]
[1771004933113,0.85143556,84.417,84.38,22.2981634]
[1771004933497,0.85143556,84.417,84.381,0.93034476]
[1771004934716,11.84581487,84.418,84.383,0.93034476]
[1771004935432,10.44705099,84.41,84.383,0.93034476]
[1771004935715,11.84581487,84.418,84.383,0.93034476]
[1771004935899,11.84581487,84.418,84.391,0.93034476]
[1771004936218,10.44705099,84.43,84.401,0.93034476]
[1771004936592,11.8446213,84.427,84.401,0.93034476]
[1771004936809,11.8446213,84.427,84.392,0.93034476]
[1771004937215,11.84402459,84.431,84.401,0.93034476]
[1771004937416,11.84319084,84.437,84.411,0.93034476]
[1771004937618,0.85143556,84.449,84.411,0.93034476]
[1771004938619,0.85143556,84.448,84.412,11.84665687]
[1771004938914,0.85143556,84.448,84.412,12.77700163]
[1771004939300,0.85143556,84.448,84.413,0.93034476]
[1771004939502,10.44705099,84.44,84.413,0.93034476]
[1771004940024,0.85143556,84.448,84.413,0.93034476]
[1771004940519,11.84146644,84.449,84.412,11.84665687]
[1771004940520,11.84146644,84.449,84.421,0.93034476]
[1771004941019,0.8668968,84.448,84.413,0.85200756]
[1771004941218,10.44705099,84.44,84.413,0.85200756]
[1771004941806,10.44705099,84.44,84.401,46.2]
[1771004941807,0.8668968,84.439,84.404,12.6997654]
[1771004942126,0.8668968,84.439,84.401,46.2]
[1771004942127,0.8668968,84.439,84.403,0.85200756]
[1771004943124,0.8668968,84.429,84.394,0.85200756]
[1771004943733,0.8668968,84.429,84.379,46.22]
[1771004943734,0.8668968,84.429,84.4,10.44705099]
[1771004944308,0.8668968,84.429,84.396,0.85200756]
[1771004944516,46.68,84.434,84.385,0.85200756]
[1771004944517,0.8668968,84.419,84.385,0.85200756]
[1771004945733,0.8668968,84.409,84.381,46.22]
[1771004945930,0.8668968,84.409,84.382,11.85086866]
[1771004946133,0.8668968,84.417,84.383,0.85200756]
[1771004946625,10.44705099,84.41,84.383,0.85200756]
[1771004948138,0.8668968,84.399,84.367,0.85200756]
[1771004948438,0.8668968,84.389,84.359,0.85200756]
[1771004948611,10.44705099,84.38,84.351,11.8551767]
[1771004948814,11.31394779,84.38,84.351,11.8551767]
[1771004949031,10.44705099,84.37,84.341,0.85200756]
[1771004949232,0.8668968,84.369,84.341,12.70863719]
[1771004949535,0.8668968,84.379,84.342,0.85200756]
[1771004949936,10.44705099,84.38,84.351,0.85200756]
[1771004950144,11.85129001,84.379,84.351,0.85200756]
[1771004950439,10.44705099,84.36,84.331,0.85200756]
[1771004950849,0.8668968,84.369,84.331,0.85200756]
[1771004951635,10.44705099,84.36,84.331,0.85200756]
[1771004952135,46.66,84.381,84.32,11.29905855]
[1771004952136,11.85564565,84.348,84.32,11.29905855]
[1771004952345,10.44705099,84.35,84.322,0.85200756]
[1771004952528,0.8668968,84.358,84.322,0.85200756]
[1771004952919,10.44705099,84.35,84.322,0.85200756]
[1771004953124,11.8545662,84.356,84.311,0.85200756]
[1771004953125,10.44705099,84.34,84.311,0.85200756]
[1771004953331,10.44705099,84.35,84.321,0.85200756]
[1771004953823,10.44705099,84.35,84.31,10.44705099]
[1771004953824,10.44705099,84.34,84.312,0.85200756]
[1771004954337,10.44705099,84.34,84.314,0.85200756]
[1771004956531,11.8555198,84.349,84.316,0.85200756]
[1771004958448,0.8668968,84.367,84.331,0.85200756]
[1771004958623,11.85289807,84.368,84.341,0.85200756]
[1771004959927,0.8668968,84.349,84.314,0.85200756]
[1771004960128,10.44705099,84.34,84.314,0.85200756]
[1771004960867,11.8569108,84.339,84.314,0.85200756]
[1771004961045,10.43538314,84.33,84.306,0.85200756]
[1771004961637,10.43538314,84.33,84.3,46.32]
[1771004961833,11.30227994,84.33,84.3,46.32]
[1771004962034,11.30227994,84.33,84.3,0.85200756]
[1771004962752,11.30227994,84.33,84.302,0.85200756]
[1771004962952,10.43538314,84.33,84.302,0.85200756]
[1771004963153,0.8668968,84.339,84.302,0.85200756]
[1771004963348,10.43538314,84.34,84.302,0.85200756]
[1771004963647,10.43538314,84.34,84.311,0.85200756]
[1771004964340,11.30227994,84.34,84.311,0.85200756]
[1771004965840,10.43538314,84.34,84.313,0.85200756]
[1771004966355,12.7238076,84.339,84.313,0.85200756]
[1771004966730,10.43538314,84.33,84.305,0.85200756]
[1771004967141,0.22,84.499,84.305,0.85200756]
[1771004967142,10.43538314,84.34,84.305,0.85200756]
[1771004967352,11.8569108,84.339,84.305,0.85200756]
[1771004968549,0.8668968,84.345,84.311,0.85200756]
[1771004968964,22.29075114,84.35,84.311,0.85200756]
[1771004969343,11.30227994,84.34,84.311,0.85200756]
[1771004969656,0.8668968,84.347,84.311,0.85200756]
[1771004969954,29.63492246,84.36,84.331,0.85200756]
[1771004969955,22.28937738,84.36,84.331,0.85200756]
[1771004970658,4.61729252,84.375,84.306,41.51543187]
[1771004970659,46.76,84.38,84.351,0.84931966]
[1771004970842,0.88992817,84.389,84.351,0.84931966]
[1771004971646,10.43538314,84.38,84.351,0.84931966]
[1771004972554,10.43538314,84.37,84.351,0.84931966]
[1771004973554,0.88992817,84.387,84.352,0.84931966]
[1771004973749,10.43538314,84.38,84.352,0.84931966]
[1771004974755,0.88992817,84.379,84.352,0.84931966]
[1771004974943,0.88992817,84.379,84.353,11.85494291]
[1771004975356,10.43538314,84.38,84.354,0.84931966]
[1771004975941,11.32531131,84.38,84.354,0.84931966]
[1771004976159,12.74121818,84.379,84.354,0.84931966]
[1771004976663,11.85129001,84.379,84.354,0.84931966]
[1771004976857,0.88992817,84.378,84.354,0.84931966]
[1771004977363,11.85157092,84.377,84.349,12.72801286]
[1771004977562,0.89269336,84.376,84.349,12.72801286]
[1771004978258,11.3280765,84.38,84.35,0.8725687]
[1771004978663,0.89269336,84.378,84.35,0.8725687]
[1771004978854,3.89243483,84.37,84.35,0.8725687]
[1771004979167,11.85157092,84.377,84.352,0.8725687]
[1771004979550,46.78,84.383,84.352,0.8725687]
[1771004979963,3.89243483,84.4,84.361,0.8725687]
[1771004980152,3.89243483,84.4,84.371,0.8725687]
[1771004980561,0.89269336,84.409,84.371,0.8725687]
[1771004980947,12.74032044,84.406,84.373,0.8725687]
[1771004981446,12.74032044,84.406,84.372,11.85227326]
[1771004981447,0.89269336,84.418,84.381,0.8725687]
[1771004981650,0.89269336,84.409,84.373,0.8725687]
[1771004981856,0.89269336,84.409,84.375,0.8725687]
[1771004982361,0.89269336,84.399,84.372,11.85227326]
[1771004984346,0.89269336,84.399,84.37,10.41809202]
[1771004984347,10.41809202,84.4,84.375,0.8725687]
[1771004984770,11.84801969,84.403,84.375,0.8725687]
[1771004985266,10.41809202,84.4,84.375,0.8725687]
[1771004985660,0.89269336,84.405,84.375,0.8725687]
[1771004986959,11.84777972,84.404,84.375,0.8725687]
[1771004987468,11.84777972,84.404,84.376,11.85171138]
[1771004987674,11.84777972,84.404,84.377,0.8725687]
[1771004988554,46.86,84.419,84.381,0.8725687]
[1771004988967,0.89269336,84.418,84.391,0.8725687]
[1771004989263,0.89269336,84.418,84.39,10.41809202]
[1771004989264,11.84497489,84.424,84.401,0.8725687]
[1771004989470,0.89269336,84.419,84.391,0.8725687]
[1771004989862,0.89269336,84.419,84.4,10.41809202]
[1771004990073,0.89269336,84.427,84.4,11.29066072]
[1771004990262,0.89269336,84.427,84.401,0.8725687]
[1771004990460,46.9,84.436,84.401,0.8725687]
[1771004990655,0.89269336,84.435,84.401,0.8725687]
[1771004990890,10.41809202,84.44,84.403,0.8725687]
[1771004991167,11.84240374,84.443,84.411,0.8725687]
[1771004991971,11.84174689,84.447,84.412,11.84665687]
[1771004992273,11.84174689,84.447,84.421,0.8725687]
[1771004992469,11.84034479,84.457,84.431,0.8725687]
[1771004992850,11.83922334,84.465,84.431,0.8725687]
[1771004993257,11.31078538,84.46,84.431,0.8725687]
[1771004993468,11.31078538,84.46,84.42,10.41809202]
[1771004993469,0.89269336,84.459,84.423,0.8725687]
[1771004994253,0.89269336,84.457,84.424,11.84497299]
[1771004994469,0.89269336,84.456,84.423,0.8725687]
[1771004994659,0.89269336,84.449,84.415,0.8725687]
[1771004994976,0.89269336,84.439,84.4,46.4]
[1771004995172,0.89269336,84.419,84.39,0.8725687]
[1771004997171,11.84474327,84.426,84.392,0.8725687]
[1771004997561,0.89269336,84.419,84.392,0.8725687]
[1771004997767,10.41809202,84.41,84.381,0.8725687]
[1771004999059,0.89269336,84.416,84.381,0.8725687]
[1771004999579,11.84623585,84.415,84.382,0.8725687]
[1771004999773,11.31078538,84.4,84.376,11.8516852]
[1771004999969,0.89269336,84.4,84.374,0.8725687]
[1771005000174,0.89269336,84.4,84.371,46.4]
[1771005000175,0.89269336,84.399,84.371,46.4]
[1771005000376,11.84623585,84.415,84.381,0.8725687]
[1771005000773,41.46182549,84.415,84.391,0.81142143]
[1771005001082,0.85052815,84.399,84.372,0.81142143]
[1771005001377,41.46182549,84.415,84.355,0.81142143]
[1771005001378,10.41809202,84.38,84.355,0.81142143]
[1771005001592,10.41809202,84.38,84.34,10.41809202]
[1771005001593,10.41809202,84.4,84.361,0.81142143]
[1771005001757,10.41809202,84.4,84.356,11.85452131]
[1771005001758,11.84867046,84.398,84.371,0.81142143]
[1771005001961,11.84776099,84.405,84.371,0.81142143]
[1771005002580,11.84679451,84.412,84.381,0.81142143]
[1771005002781,0.85052815,84.409,84.373,0.81142143]
[1771005002973,3.89026554,84.39,84.363,0.81142143]
[1771005003288,0.85052815,84.389,84.363,0.81142143]
[1771005003966,46.92,84.398,84.365,0.81142143]
[1771005004162,11.84909736,84.395,84.365,0.81142143]
[1771005005381,11.84909736,84.395,84.36,10.42064596]
[1771005005382,11.27117411,84.43,84.381,0.81142143]
[1771005005579,11.27117411,84.43,84.366,11.85311618]
[1771005005580,0.85052815,84.428,84.391,0.81142143]
[1771005005966,10.42064596,84.42,84.391,0.81142143]
[1771005006492,0.85052815,84.422,84.391,0.81142143]
[1771005006668,0.85052815,84.422,84.366,41.48590664]
[1771005006669,11.84286881,84.439,84.401,0.81142143]
[1771005006867,0.85052815,84.429,84.391,0.81142143]
[1771005007480,0.85052815,84.427,84.393,0.81142143]
[1771005008376,46.92,84.43,84.401,0.81142143]
[1771005009489,46.92,84.43,84.411,0.81142143]
[1771005009789,58.76418074,84.43,84.411,0.81142143]
[1771005012192,46.96,84.446,84.421,0.81142143]
[1771005012391,11.27117411,84.44,84.411,0.81142143]
[1771005012591,0.85052815,84.439,84.401,11.84820085]
[1771005012777,0.85052815,84.429,84.4,10.42064596]
[1771005013094,0.85052815,84.419,84.391,0.81142143]
[1771005013592,0.85052815,84.399,84.364,0.81142143]
[1771005013777,10.42064596,84.39,84.364,0.81142143]
[1771005013977,11.84890279,84.396,84.371,0.81142143]
[1771005014284,10.42064596,84.39,84.361,12.66516776]
[1771005014587,0.85052815,84.395,84.361,12.66516776]
[1771005014588,0.85052815,84.395,84.362,0.81142143]
[1771005015989,11.84918359,84.394,84.364,0.81142143]
[1771005016690,46.98,84.398,84.364,0.81142143]
[1771005016891,46.98,84.398,84.363,11.85353768]
[1771005016892,47.0,84.414,84.381,0.81142143]
[1771005017071,47.85052815,84.414,84.381,0.81142143]
[1771005017275,0.85052815,84.409,84.372,0.81142143]
[1771005018410,0.85052815,84.409,84.363,41.4873819]
[1771005018411,11.84721827,84.408,84.381,0.81142143]
[1771005023191,0.85052815,84.399,84.372,0.81142143]
[1771005024499,11.26766586,84.39,84.364,0.81142143]
[1771005024895,0.85052815,84.399,84.364,0.81142143]
[1771005025092,10.41713771,84.4,84.366,0.81142143]
[1771005025093,12.69915015,84.398,84.366,0.81142143]
[1771005025407,0.85052815,84.397,84.366,0.81142143]
[1771005025979,0.85052815,84.389,84.357,0.81142143]
[1771005026284,10.41713771,84.38,84.352,11.8550245]
[1771005026802,47.1,84.386,84.343,11.85629166]
[1771005026803,11.26766586,84.37,84.343,11.85629166]
[1771005026999,0.85052815,84.37,84.343,11.85629166]
[1771005027184,0.85052815,84.37,84.344,0.81142143]
[1771005027386,11.8517824,84.376,84.344,0.81142143]
[1771005027600,47.1,84.389,84.361,0.81142143]
[1771005027999,41.47017701,84.398,84.343,11.85629166]
[1771005028000,0.85052815,84.388,84.351,0.81142143]
[1771005028413,0.85052815,84.386,84.351,0.81142143]
[1771005029001,0.85052815,84.377,84.343,11.85629166]
[1771005029198,3.89254511,84.37,84.344,0.81142143]
[1771005029607,41.48000662,84.378,84.333,11.8577011]
[1771005029608,0.85052815,84.359,84.333,11.8577011]
[1771005029899,0.85052815,84.359,84.331,0.81142143]
[1771005030100,47.12,84.361,84.331,0.81142143]
[1771005030306,0.85052815,84.367,84.331,0.81142143]
[1771005030307,47.97052815,84.367,84.331,0.81142143]
[1771005030687,11.85143046,84.378,84.35,3.89254511]
[1771005030888,11.85143046,84.378,84.351,0.86310436]
[1771005031509,10.4232867,84.38,84.353,0.86310436]
[1771005031802,11.85129001,84.379,84.353,0.86310436]
[1771005032383,10.4232867,84.39,84.361,0.86310436]
[1771005032588,47.14,84.396,84.361,0.86310436]
[1771005032788,47.97918463,84.396,84.361,0.86310436]
[1771005033004,47.14,84.396,84.361,0.86310436]
[1771005033203,11.84800084,84.403,84.371,0.86310436]
[1771005033905,11.26247133,84.4,84.371,12.71544353]
[1771005034293,0.83918463,84.399,84.363,0.86310436]
[1771005034593,41.46780108,84.403,84.371,0.86310436]
[1771005034594,11.84800084,84.403,84.371,0.86310436]
[1771005034802,0.83918463,84.402,84.371,0.86310436]
[1771005035200,0.83918463,84.402,84.37,10.4232867]
[1771005035201,0.83918463,84.399,84.362,0.86310436]
[1771005035406,10.4232867,84.39,84.362,0.86310436]
[1771005035607,0.83918463,84.391,84.362,0.86310436]
[1771005035802,11.84974523,84.39,84.362,0.86310436]
[1771005036191,11.84894468,84.396,84.363,0.86310436]
[1771005036396,11.84894468,84.396,84.371,0.86310436]
[1771005036995,11.84825355,84.401,84.371,0.86310436]
[1771005037397,10.4232867,84.4,84.371,0.86310436]
[1771005037617,0.85394779,84.399,84.371,0.86310436]
[1771005038318,0.85394779,84.399,84.372,11.85227326]
[1771005039113,11.848622,84.398,84.372,11.85227326]
[1771005039311,11.848622,84.398,84.371,0.86310436]
[1771005039312,0.85394779,84.397,84.371,0.86310436]
[1771005040508,0.85394779,84.397,84.371,12.71540594]
[1771005040710,11.84890279,84.396,84.371,12.71540594]
[1771005040923,0.85394779,84.389,84.351,0.84401302]
[1771005041220,10.4232867,84.38,84.351,0.84401302]
[1771005041423,0.85394779,84.389,84.351,0.84401302]
[1771005041924,47.2,84.391,84.361,0.84401302]
[1771005042421,22.27303193,84.39,84.361,0.84401302]
[1771005043025,23.12697972,84.39,84.361,0.84401302]
[1771005043701,0.85394779,84.389,84.352,0.84401302]
[1771005043909,0.85394779,84.379,84.352,0.84401302]
[1771005044804,12.70524234,84.379,84.352,0.84401302]
[1771005045025,0.85394779,84.378,84.342,0.84401302]
[1771005045210,0.85394779,84.369,84.342,0.84401302]
[1771005045411,0.85394779,84.369,84.337,11.85711624]
[1771005045621,0.85394779,84.369,84.338,0.84401302]
[1771005046327,41.47951958,84.379,84.327,0.84401302]
[1771005046328,0.85394779,84.359,84.327,0.84401302]
[1771005046920,0.85394779,84.357,84.32,11.36729972]
[1771005047123,41.48984091,84.358,84.32,0.1]
[1771005047124,10.4232867,84.34,84.32,0.1]
[1771005047327,0.85394779,84.349,84.32,0.1]
[1771005047825,10.4232867,84.34,84.32,0.1]
[1771005048328,47.28,84.344,84.322,0.84401302]
[1771005048911,11.85634848,84.343,84.322,0.84401302]
[1771005050330,0.85394779,84.329,84.305,0.84401302]
[1771005051229,12.71236054,84.329,84.305,0.84401302]
[1771005051729,47.32,84.333,84.306,0.84401302]
[1771005051918,47.32,84.335,84.311,0.84401302]
[1771005052112,47.32,84.344,84.311,0.84401302]
[1771005052312,47.32,84.344,84.321,0.84401302]
[1771005052816,0.85394779,84.368,84.33,10.4232867]
[1771005053028,0.85394779,84.387,84.351,0.84401302]
[1771005053331,11.85044735,84.385,84.353,0.84401302]
[1771005053531,12.70439514,84.385,84.353,0.84401302]
[1771005053731,0.85394779,84.379,84.348,0.84401302]
[1771005054119,0.85394779,84.379,84.349,0.84401302]
[1771005054327,0.85394779,84.379,84.34,10.4232867]
[1771005054328,0.85394779,84.369,84.34,0.84401302]
[1771005054636,0.85394779,84.369,84.327,0.84401302]
[1771005054836,0.85394779,84.369,84.331,0.84401302]
[1771005055729,0.85394779,84.359,84.331,0.84401302]
[1771005055948,11.85283519,84.368,84.332,0.84401302]
[1771005056229,11.85283519,84.368,84.331,11.85796188]
[1771005056230,11.85234133,84.372,84.341,0.84401302]
[1771005056534,12.70628912,84.372,84.341,0.84401302]
[1771005056735,0.85394779,84.371,84.341,0.84401302]
[1771005057134,4.61729252,84.395,84.326,46.26]
[1771005057135,11.8502714,84.387,84.351,0.84401302]
[1771005057440,11.8502714,84.387,84.361,0.84401302]
[1771005058532,41.47263398,84.393,84.361,0.84401302]
[1771005058733,0.85394779,84.389,84.361,0.84401302]
[1771005058921,0.85394779,84.389,84.362,0.84401302]
[1771005059127,11.84932399,84.393,84.362,0.84401302]
[1771005059633,10.4232867,84.39,84.362,0.84401302]
[1771005060735,29.62030566,84.402,84.34,46.26]
[1771005060736,10.4232867,84.4,84.371,0.83459336]
[1771005060921,11.84742389,84.407,84.381,0.83459336]
[1771005061834,0.79026826,84.406,84.381,0.83459336]
[1771005062134,0.79026826,84.406,84.38,10.4232867]
[1771005062726,0.79026826,84.406,84.376,0.83459336]
[1771005063540,0.79026826,84.406,84.358,46.24]
[1771005063541,0.79026826,84.399,84.361,0.83459336]
[1771005064033,0.79026826,84.389,84.361,0.83459336]
[1771005064339,0.79026826,84.389,84.362,11.85367819]
[1771005064540,0.79026826,84.389,84.362,12.68827155]
[1771005065231,0.79026826,84.389,84.362,0.83459336]
[1771005065733,0.79026826,84.418,84.38,10.4232867]
[1771005065964,0.79026826,84.439,84.411,0.83459336]
[1771005066147,0.79026826,84.468,84.431,0.83459336]
[1771005066339,47.53179462,84.51,84.441,0.83459336]
[1771005066340,6.16707199,84.465,84.441,0.83459336]
[1771005066522,6.16707199,84.465,84.45,10.4232867]
[1771005066724,6.16707199,84.465,84.441,0.83459336]
[1771005067821,47.4,84.478,84.36,10.4232867]
[1771005067822,0.85720666,84.485,84.46,10.4232867]
[1771005068021,0.85720666,84.495,84.469,5.19e-06]
[1771005068240,0.85720666,84.495,84.48,10.4232867]
[1771005068546,0.85720666,84.495,84.47,10.4232867]
[1771005069824,0.85720666,84.495,84.48,10.4232867]
[1771005070145,0.85720666,84.495,84.469,5.19e-06]
[1771005070146,1e-08,84.5,84.49,10.4232867]
[1771005072040,1e-08,84.5,84.49,22.25897802]
[1771005072548,1e-08,84.5,84.469,5.19e-06]
[1771005072549,0.85720667,84.5,84.469,5.19e-06]
[1771005072731,0.85720667,84.5,84.47,10.4232867]
[1771005073124,0.85720666,84.499,84.47,10.4232867]
[1771005073351,1e-08,84.5,84.47,10.4232867]
[1771005073352,1e-08,84.5,84.48,10.4232867]
[1771005073551,1e-08,84.5,84.47,10.4232867]
[1771005074257,0.85720666,84.499,84.469,5.19e-06]
[1771005074434,10.42328671,84.5,84.49,10.4232867]
[1771005074435,1e-08,84.5,84.49,10.4232867]
[1771005074630,0.2,84.51,84.49,10.4232867]
[1771005074833,1.05720666,84.51,84.49,10.4232867]
[1771005075034,0.85720666,84.508,84.48,10.4232867]
[1771005075243,0.85720666,84.508,84.47,10.4232867]
[1771005075430,0.2,84.53,84.5,10.4232867]
[1771005075431,0.85720666,84.518,84.5,10.4232867]
[1771005075635,0.85720666,84.527,84.51,10.4232867]
[1771005076127,0.2,84.53,84.51,10.4232867]
[1771005076842,0.2,84.53,84.51,22.25617957]
[1771005077429,1.05720666,84.53,84.502,11.83400701]
[1771005077855,1.05720666,84.53,84.451,94.7294881]
[1771005077856,10.4232867,84.52,84.451,94.7294881]
[1771005078159,0.85720666,84.519,84.49,10.4232867]
[1771005078463,0.85720666,84.517,84.48,10.4232867]
[1771005079240,0.85720666,84.517,84.49,10.4232867]
[1771005079744,0.85720666,84.499,84.469,11.83852835]
[1771005080057,0.85720666,84.499,84.47,10.4232867]
[1771005080651,0.85720666,84.499,84.471,11.8383824]
[1771005081146,47.24,84.523,84.469,5.19e-06]
[1771005081147,0.85720666,84.489,84.469,5.19e-06]
[1771005081351,0.85720666,84.489,84.47,10.4232867]
[1771005081554,11.83459963,84.498,84.43,10.4232867]
[1771005081555,0.85720666,84.479,84.43,10.4232867]
[1771005081852,0.85720666,84.469,84.43,10.4232867]
[1771005082034,0.85720666,84.48,84.45,10.4232867]
[1771005082230,10.4232867,84.48,84.45,10.4232867]
[1771005082435,0.85720666,84.459,84.42,10.4232867]
[1771005082637,0.85720666,84.457,84.421,11.84539391]
[1771005083063,0.85720666,84.457,84.43,10.4232867]
[1771005083757,0.85720666,84.466,84.44,10.4232867]
[1771005084142,0.85720666,84.459,84.421,41.4588787]
[1771005084338,0.85720666,84.459,84.43,10.4232867]
[1771005084653,47.2,84.478,84.42,10.4232867]
[1771005084654,0.85720666,84.457,84.42,10.4232867]
[1771005084855,0.85720666,84.449,84.41,10.40844355]
[1771005085040,41.44071608,84.458,84.41,10.40844355]
[1771005085041,0.85720666,84.439,84.41,10.40844355]
[1771005085242,0.85720666,84.439,84.41,22.2552524]
[1771005085645,0.85720666,84.448,84.42,10.40844355]
[1771005085855,0.85720666,84.439,84.41,10.40844355]
[1771005086242,0.85720666,84.449,84.41,10.40844355]
[1771005086554,0.85720666,84.449,84.411,11.84679721]
[1771005086737,165.0,84.491,84.41,10.40844355]
[1771005086738,0.85720666,84.447,84.41,10.40844355]
[1771005086945,165.0,84.491,84.38,4.71729252]
[1771005086946,0.85720666,84.469,84.43,10.40844355]
[1771005087768,0.85720666,84.459,84.42,10.40844355]
[1771005087970,0.85720666,84.449,84.42,10.40844355]
[1771005088496,0.85720666,84.458,84.43,10.40844355]
[1771005089344,0.85720666,84.468,84.431,11.84399095]
[1771005089541,29.59439082,84.476,84.431,11.84399095]
[1771005089542,0.85720666,84.479,84.45,10.40844355]
[1771005090866,0.85720666,84.478,84.45,10.40844355]
[1771005091262,0.85720666,84.478,84.44,10.40844355]
[1771005092049,0.85720666,84.459,84.432,11.84379164]
[1771005093271,0.85720666,84.459,84.43,10.40844355]
[1771005093459,0.85720666,84.459,84.431,11.84399095]
[1771005095371,0.85720666,84.459,84.44,10.40844355]
[1771005095576,0.85720666,84.479,84.44,10.40844355]
[1771005095755,0.85720666,84.459,84.43,11.84408474]
[1771005096159,0.85720666,84.459,84.429,46.18]
[1771005096762,0.85720666,84.457,84.421,41.45861185]
[1771005097677,0.85720666,84.457,84.43,10.40844355]
[1771005098473,11.83955261,84.463,84.43,10.40844355]
[1771005098671,0.85720666,84.462,84.43,10.40844355]
[1771005099961,11.83978404,84.461,84.431,11.84399095]